[Event "Champions Chess Tour Finals 2024"]
[Date "2024.12.17"]
[White "Keymer, Vincent"]
[Black "Carlsen, Magnus"]
[WhiteElo "2649"]
[BlackElo "2838"]
[Round "1.2"]
[Result "1/2-1/2"]
[TimeControl "600+2"]

1. d4 {[%clk 0:10:02]} Nf6 {[%clk 0:10:02]} 2. c4 {[%clk 0:10:03]} e6 {[%clk
0:10:02]} 3. Nc3 {[%clk 0:10:04]} Bb4 {[%clk 0:10:03]} 4. f3 {[%clk 0:10:04]} d5
{[%clk 0:10:03]} 5. a3 {[%clk 0:10:06]} Bxc3+ {[%clk 0:10:03]} 6. bxc3 {[%clk
0:10:07]} c5 {[%clk 0:10:04]} 7. cxd5 {[%clk 0:10:07]} Nxd5 {[%clk 0:10:04]} 8.
dxc5 {[%clk 0:10:07]} Qa5 {[%clk 0:10:02]} 9. e4 {[%clk 0:10:08]} Nc7 {[%clk
0:10:02]} 10. Be3 {[%clk 0:09:55]} O-O {[%clk 0:09:59]} 11. Kf2 {[%clk 0:08:34]}
Nc6 {[%clk 0:09:37]} 12. Qb3 {[%clk 0:08:10]} e5 {[%clk 0:07:51]} 13. Bc4 {[%clk
0:08:11]} Ne6 {[%clk 0:07:02]} 14. Ne2 {[%clk 0:07:25]} Nxc5 {[%clk 0:06:53]}
15. Qb5 {[%clk 0:07:26]} Qxb5 {[%clk 0:06:48]} 16. Bxb5 {[%clk 0:07:26]} Nb3
{[%clk 0:06:48]} 17. Rab1 {[%clk 0:06:52]} Be6 {[%clk 0:06:43]} 18. Rhd1 {[%clk
0:03:46]} Rfd8 {[%clk 0:06:23]} 19. Rxd8+ {[%clk 0:03:21]} Rxd8 {[%clk 0:06:23]}
20. c4 {[%clk 0:03:21]} Nca5 {[%clk 0:04:38]} 21. Bxa7 {[%clk 0:03:18]} Nd2
{[%clk 0:04:31]} 22. Rb4 {[%clk 0:02:49]} Ra8 {[%clk 0:03:57]} 23. Be3 {[%clk
0:01:55]} Ndxc4 {[%clk 0:03:57]} 24. a4 {[%clk 0:01:57]} Rc8 {[%clk 0:03:18]}
25. Bc1 {[%clk 0:01:50]} f6 {[%clk 0:03:18]} 26. Rb1 {[%clk 0:01:42]} Nd6 {[%clk
0:03:05]} 27. Bd3 {[%clk 0:01:16]} Bc4 {[%clk 0:03:03]} 28. Bxc4+ {[%clk
0:01:12]} Rxc4 {[%clk 0:03:03]} 29. Ba3 {[%clk 0:01:13]} Nc8 {[%clk 0:02:48]}
30. Rb4 {[%clk 0:00:49]} Rc2 {[%clk 0:02:39]} 31. Rb5 {[%clk 0:00:44]} Nc4
{[%clk 0:02:36]} 32. Bb4 {[%clk 0:00:36]} b6 {[%clk 0:01:43]} 33. Rd5 {[%clk
0:00:36]} Nb2 {[%clk 0:01:43]} 34. Kf1 {[%clk 0:00:22]} Nxa4 {[%clk 0:01:40]}
35. Ng3 {[%clk 0:00:09]} g6 {[%clk 0:01:33]} 36. Rd7 {[%clk 0:00:07]} b5 {[%clk
0:01:28]} 37. Rb7 {[%clk 0:00:05]} Ncb6 {[%clk 0:01:28]} 38. h4 {[%clk 0:00:04]}
Nc4 {[%clk 0:01:28]} 39. Kg1 {[%clk 0:00:03]} Ne3 {[%clk 0:01:28]} 40. Kh1
{[%clk 0:00:03]} Nxg2 {[%clk 0:01:21]} 41. Rb8+ {[%clk 0:00:04]} Kf7 {[%clk
0:01:21]} 42. Rb7+ {[%clk 0:00:05]} Kg8 {[%clk 0:01:21]} 43. Rb8+ {[%clk
0:00:04]} Kf7 {[%clk 0:01:22]} 44. Rb7+ {[%clk 0:00:05]} 1/2-1/2

[Variant "Standard"]
[Site "Europe Echecs"]

[Event "Champions Chess Tour Finals 2024"]
[Date "2024.12.17"]
[White "Aronian, Levon"]
[Black "Firouzja, Alireza"]
[WhiteElo "2818"]
[BlackElo "2756"]
[Round "1.2"]
[Result "1/2-1/2"]
[TimeControl "600+2"]

1. e4 {[%clk 0:10:02]} e5 {[%clk 0:10:03]} 2. Nf3 {[%clk 0:10:03]} Nc6 {[%clk
0:10:02]} 3. Bb5 {[%clk 0:10:02]} Nf6 {[%clk 0:10:02]} 4. d3 {[%clk 0:10:02]}
Bc5 {[%clk 0:10:01]} 5. Bxc6 {[%clk 0:10:02]} dxc6 {[%clk 0:10:02]} 6. c3 {[%clk
0:09:49]} Bd6 {[%clk 0:09:37]} 7. h3 {[%clk 0:09:19]} h6 {[%clk 0:09:27]} 8. Be3
{[%clk 0:09:19]} Be6 {[%clk 0:09:23]} 9. Nbd2 {[%clk 0:09:19]} Qe7 {[%clk
0:08:32]} 10. Nf1 {[%clk 0:08:44]} O-O-O {[%clk 0:08:05]} 11. Ng3 {[%clk
0:08:36]} Kb8 {[%clk 0:07:58]} 12. Qc2 {[%clk 0:07:50]} c5 {[%clk 0:07:07]} 13.
Nd2 {[%clk 0:07:15]} g6 {[%clk 0:06:52]} 14. b3 {[%clk 0:06:09]} Nd7 {[%clk
0:06:42]} 15. Ne2 {[%clk 0:05:59]} f5 {[%clk 0:06:14]} 16. f3 {[%clk 0:05:59]}
f4 {[%clk 0:05:56]} 17. Bf2 {[%clk 0:06:00]} g5 {[%clk 0:05:57]} 18. O-O-O
{[%clk 0:04:55]} h5 {[%clk 0:05:56]} 19. d4 {[%clk 0:04:41]} cxd4 {[%clk
0:05:42]} 20. cxd4 {[%clk 0:04:42]} exd4 {[%clk 0:05:42]} 21. Nxd4 {[%clk
0:04:40]} Ne5 {[%clk 0:05:24]} 22. Kb1 {[%clk 0:03:51]} Bc8 {[%clk 0:04:42]} 23.
Nf5 {[%clk 0:02:59]} Qe6 {[%clk 0:03:28]} 24. Bd4 {[%clk 0:02:29]} b6 {[%clk
0:03:16]} 25. Nc4 {[%clk 0:01:31]} Nxc4 {[%clk 0:03:05]} 26. Qxc4 {[%clk
0:01:20]} Qxc4 {[%clk 0:03:03]} 27. bxc4 {[%clk 0:01:22]} Rhf8 {[%clk 0:02:57]}
28. Nxd6 {[%clk 0:00:59]} Rxd6 {[%clk 0:02:57]} 29. c5 {[%clk 0:00:51]} Rc6
{[%clk 0:02:47]} 30. cxb6 {[%clk 0:00:37]} axb6 {[%clk 0:02:48]} 31. Rc1 {[%clk
0:00:37]} Rxc1+ {[%clk 0:02:42]} 32. Rxc1 {[%clk 0:00:37]} Kb7 {[%clk 0:02:42]}
33. Be5 {[%clk 0:00:34]} Rf7 {[%clk 0:02:36]} 34. Kb2 {[%clk 0:00:33]} Be6
{[%clk 0:02:30]} 35. a3 {[%clk 0:00:31]} Rd7 {[%clk 0:01:34]} 36. Kc3 {[%clk
0:00:32]} c5 {[%clk 0:01:29]} 37. Rc2 {[%clk 0:00:31]} Kc6 {[%clk 0:00:40]} 38.
Rd2 {[%clk 0:00:27]} b5 {[%clk 0:00:17]} 39. Rxd7 {[%clk 0:00:12]} Kxd7 {[%clk
0:00:17]} 40. Kd2 {[%clk 0:00:05]} Bc4 {[%clk 0:00:15]} 41. Ke1 {[%clk 0:00:06]}
Ke6 {[%clk 0:00:14]} 42. Bc3 {[%clk 0:00:06]} h4 {[%clk 0:00:10]} 43. Ba5 {[%clk
0:00:06]} Kf7 {[%clk 0:00:07]} 44. Kf2 {[%clk 0:00:03]} b4 {[%clk 0:00:07]} 45.
axb4 {[%clk 0:00:04]} cxb4 {[%clk 0:00:08]} 46. Bxb4 {[%clk 0:00:06]} Kg6 {[%clk
0:00:09]} 47. Be7 {[%clk 0:00:05]} Bb5 {[%clk 0:00:09]} 48. Ke1 {[%clk 0:00:06]}
Bc4 {[%clk 0:00:10]} 49. Bd8 {[%clk 0:00:04]} Bb5 {[%clk 0:00:11]} 50. e5 {[%clk
0:00:03]} Bc4 {[%clk 0:00:11]} 51. Kf2 {[%clk 0:00:04]} Kf5 {[%clk 0:00:12]} 52.
Bf6 {[%clk 0:00:05]} Bd5 {[%clk 0:00:12]} 53. Be7 {[%clk 0:00:05]} Bc4 {[%clk
0:00:12]} 54. Ke1 {[%clk 0:00:05]} Bd5 {[%clk 0:00:09]} 1/2-1/2

[Variant "Standard"]
[Site "Europe Echecs"]

[Event "Champions Chess Tour Finals 2024"]
[Date "2024.12.20"]
[White "Carlsen, Magnus"]
[Black "Vachier-Lagrave, Maxime"]
[WhiteElo "2838"]
[BlackElo "2763"]
[Round "1.1"]
[Result "1-0"]
[TimeControl "600+2"]

1. c4 {[%clk 0:10:01]} g6 {[%clk 0:10:03]} 2. g3 {[%clk 0:09:55]} c5 {[%clk
0:09:58]} 3. Bg2 {[%clk 0:09:54]} Bg7 {[%clk 0:09:58]} 4. Nc3 {[%clk 0:09:54]}
Nf6 {[%clk 0:09:57]} 5. Nh3 {[%clk 0:08:07]} Nc6 {[%clk 0:09:10]} 6. Nf4 {[%clk
0:08:06]} d6 {[%clk 0:09:10]} 7. b3 {[%clk 0:07:19]} O-O {[%clk 0:08:18]} 8. O-O
{[%clk 0:07:14]} Rb8 {[%clk 0:07:26]} 9. Bb2 {[%clk 0:07:11]} a6 {[%clk
0:07:27]} 10. d3 {[%clk 0:06:28]} Bd7 {[%clk 0:07:06]} 11. Qd2 {[%clk 0:06:27]}
b5 {[%clk 0:06:33]} 12. Ncd5 {[%clk 0:06:22]} e6 {[%clk 0:06:29]} 13. Nxf6+
{[%clk 0:06:21]} Bxf6 {[%clk 0:06:29]} 14. Bxf6 {[%clk 0:06:03]} Qxf6 {[%clk
0:06:29]} 15. e3 {[%clk 0:06:03]} Rfd8 {[%clk 0:05:14]} 16. Rac1 {[%clk
0:05:56]} bxc4 {[%clk 0:04:46]} 17. dxc4 {[%clk 0:05:46]} Ne5 {[%clk 0:03:34]}
18. Rfd1 {[%clk 0:04:23]} Bc6 {[%clk 0:03:32]} 19. Bxc6 {[%clk 0:03:47]} Nxc6
{[%clk 0:03:32]} 20. Nd3 {[%clk 0:03:27]} a5 {[%clk 0:03:25]} 21. h4 {[%clk
0:03:15]} a4 {[%clk 0:03:23]} 22. Rb1 {[%clk 0:02:58]} axb3 {[%clk 0:03:23]} 23.
axb3 {[%clk 0:02:59]} Ra8 {[%clk 0:03:08]} 24. Kg2 {[%clk 0:02:57]} h5 {[%clk
0:02:52]} 25. Qe2 {[%clk 0:02:33]} Rdb8 {[%clk 0:02:21]} 26. Nf4 {[%clk
0:02:27]} Rd8 {[%clk 0:02:10]} 27. Rd2 {[%clk 0:02:20]} Kf8 {[%clk 0:01:26]} 28.
Rbd1 {[%clk 0:02:19]} Ke7 {[%clk 0:01:26]} 29. Qf3 {[%clk 0:02:16]} Ra6 {[%clk
0:01:13]} 30. Rd5 {[%clk 0:01:16]} Rd7 {[%clk 0:00:55]} 31. Qe4 {[%clk 0:01:16]}
Ne5 {[%clk 0:00:37]} 32. Rxc5 {[%clk 0:01:15]} dxc5 {[%clk 0:00:37]} 33. Rxd7+
{[%clk 0:01:16]} Kxd7 {[%clk 0:00:34]} 34. Qb7+ {[%clk 0:01:17]} Ke8 {[%clk
0:00:22]} 35. Qxa6 {[%clk 0:01:18]} Qf5 {[%clk 0:00:23]} 36. Qc8+ {[%clk
0:01:17]} Ke7 {[%clk 0:00:24]} 37. Qxc5+ {[%clk 0:01:18]} Ke8 {[%clk 0:00:18]}
38. Qd4 {[%clk 0:01:09]} Ng4 {[%clk 0:00:19]} 39. e4 {[%clk 0:01:01]} Qa5 {[%clk
0:00:19]} 40. Nh3 {[%clk 0:00:44]} Qb4 {[%clk 0:00:19]} 41. Ng5 {[%clk 0:00:36]}
Qe1 {[%clk 0:00:06]} 42. c5 {[%clk 0:00:34]} e5 {[%clk 0:00:06]} 43. Qa4+ {[%clk
0:00:33]} Kf8 {[%clk 0:00:07]} 44. Qa2 {[%clk 0:00:30]} f6 {[%clk 0:00:08]} 45.
Qa8+ {[%clk 0:00:31]} Ke7 {[%clk 0:00:09]} 46. Qb7+ {[%clk 0:00:32]} Kd8 {[%clk
0:00:10]} 47. Ne6+ {[%clk 0:00:24]} Ke8 {[%clk 0:00:11]} 48. Qc8+ {[%clk
0:00:25]} Ke7 {[%clk 0:00:09]} 49. Qd8+ {[%clk 0:00:25]} 1-0

[Variant "Standard"]
[Site "Europe Echecs"]

[Event "Champions Chess Tour Finals 2024"]
[Date "2024.12.20"]
[White "Firouzja, Alireza"]
[Black "Nepomniachtchi, Ian"]
[WhiteElo "2756"]
[BlackElo "2758"]
[Round "1.1"]
[Result "0-1"]
[TimeControl "600+2"]

1. e4 {[%clk 0:10:03]} e5 {[%clk 0:10:02]} 2. Nf3 {[%clk 0:10:04]} Nf6 {[%clk
0:10:03]} 3. Nxe5 {[%clk 0:10:05]} d6 {[%clk 0:10:05]} 4. Nf3 {[%clk 0:10:05]}
Nxe4 {[%clk 0:10:05]} 5. Nc3 {[%clk 0:10:06]} Nxc3 {[%clk 0:10:06]} 6. dxc3
{[%clk 0:10:07]} Be7 {[%clk 0:10:07]} 7. Be3 {[%clk 0:10:08]} Nd7 {[%clk
0:10:07]} 8. Qd2 {[%clk 0:10:07]} O-O {[%clk 0:10:06]} 9. O-O-O {[%clk 0:10:07]}
Nf6 {[%clk 0:10:07]} 10. Bd3 {[%clk 0:10:03]} Re8 {[%clk 0:10:07]} 11. Rhe1
{[%clk 0:09:59]} Bg4 {[%clk 0:10:07]} 12. c4 {[%clk 0:09:56]} g6 {[%clk
0:10:04]} 13. Kb1 {[%clk 0:09:43]} Qd7 {[%clk 0:09:19]} 14. Bd4 {[%clk 0:09:27]}
Bxf3 {[%clk 0:08:55]} 15. gxf3 {[%clk 0:09:28]} Nh5 {[%clk 0:08:52]} 16. Be4
{[%clk 0:09:25]} c6 {[%clk 0:08:33]} 17. f4 {[%clk 0:09:24]} Qg4 {[%clk
0:07:17]} 18. f5 {[%clk 0:09:04]} Bf6 {[%clk 0:04:47]} 19. f3 {[%clk 0:08:07]}
Qh4 {[%clk 0:04:25]} 20. Bf2 {[%clk 0:06:17]} Qxh2 {[%clk 0:04:26]} 21. Rh1
{[%clk 0:06:16]} Qf4 {[%clk 0:03:59]} 22. Qxf4 {[%clk 0:05:29]} Nxf4 {[%clk
0:03:58]} 23. Rxd6 {[%clk 0:05:30]} Kg7 {[%clk 0:03:21]} 24. Bc5 {[%clk
0:02:45]} Nh5 {[%clk 0:02:57]} 25. Rg1 {[%clk 0:02:19]} Red8 {[%clk 0:02:57]}
26. Rxd8 {[%clk 0:01:53]} Bxd8 {[%clk 0:02:51]} 27. Rd1 {[%clk 0:01:42]} Bb6
{[%clk 0:02:31]} 28. Bb4 {[%clk 0:01:18]} Rd8 {[%clk 0:02:18]} 29. Bc3+ {[%clk
0:01:18]} Kg8 {[%clk 0:01:51]} 30. Bd3 {[%clk 0:00:53]} Nf4 {[%clk 0:01:19]} 31.
fxg6 {[%clk 0:00:54]} fxg6 {[%clk 0:01:08]} 32. c5 {[%clk 0:00:56]} Bxc5 {[%clk
0:01:04]} 33. Bc4+ {[%clk 0:00:56]} Nd5 {[%clk 0:01:06]} 34. Be5 {[%clk
0:00:51]} Kf7 {[%clk 0:01:06]} 35. f4 {[%clk 0:00:41]} Ke6 {[%clk 0:01:06]} 36.
Rh1 {[%clk 0:00:25]} h5 {[%clk 0:01:02]} 37. Bd3 {[%clk 0:00:17]} Bd6 {[%clk
0:00:46]} 38. Bxd6 {[%clk 0:00:07]} Rxd6 {[%clk 0:00:47]} 39. f5+ {[%clk
0:00:06]} gxf5 {[%clk 0:00:46]} 40. Rxh5 {[%clk 0:00:07]} Ne7 {[%clk 0:00:37]}
41. Kc1 {[%clk 0:00:07]} Rd4 {[%clk 0:00:32]} 42. Kd2 {[%clk 0:00:07]} Rg4
{[%clk 0:00:33]} 43. Rh6+ {[%clk 0:00:05]} Rg6 {[%clk 0:00:34]} 44. Rh7 {[%clk
0:00:06]} a5 {[%clk 0:00:31]} 45. a4 {[%clk 0:00:05]} Rf6 {[%clk 0:00:28]} 46.
Ke3 {[%clk 0:00:06]} b6 {[%clk 0:00:23]} 47. Bc4+ {[%clk 0:00:04]} Kd6 {[%clk
0:00:25]} 48. Kf4 {[%clk 0:00:04]} Nd5+ {[%clk 0:00:23]} 49. Kg5 {[%clk
0:00:05]} Rf8 {[%clk 0:00:24]} 50. Rh6+ {[%clk 0:00:05]} Kc5 {[%clk 0:00:25]}
51. Bd3 {[%clk 0:00:04]} f4 {[%clk 0:00:26]} 52. Rh2 {[%clk 0:00:03]} Kd4 {[%clk
0:00:15]} 53. Re2 {[%clk 0:00:05]} f3 {[%clk 0:00:15]} 54. Re4+ {[%clk 0:00:06]}
Kc5 {[%clk 0:00:17]} 55. Rc4+ {[%clk 0:00:07]} Kd6 {[%clk 0:00:18]} 56. Re4
{[%clk 0:00:04]} f2 {[%clk 0:00:18]} 57. Bf1 {[%clk 0:00:03]} Rg8+ {[%clk
0:00:19]} 58. Kf5 {[%clk 0:00:05]} Rg1 {[%clk 0:00:20]} 0-1

[Variant "Standard"]
[Site "Europe Echecs"]

[Event "Champions Chess Tour Finals 2024"]
[Date "2024.12.20"]
[White "Vachier-Lagrave, Maxime"]
[Black "Carlsen, Magnus"]
[WhiteElo "2763"]
[BlackElo "2838"]
[Round "1.2"]
[Result "1-0"]
[TimeControl "600+2"]

1. e4 {[%clk 0:10:03]} c5 {[%clk 0:10:03]} 2. Nf3 {[%clk 0:10:03]} g6 {[%clk
0:10:03]} 3. c3 {[%clk 0:10:00]} d5 {[%clk 0:10:03]} 4. e5 {[%clk 0:10:00]} a6
{[%clk 0:09:55]} 5. h3 {[%clk 0:09:51]} Nc6 {[%clk 0:09:44]} 6. d4 {[%clk
0:09:51]} Bg7 {[%clk 0:09:30]} 7. g3 {[%clk 0:09:51]} Bf5 {[%clk 0:07:34]} 8.
Bg2 {[%clk 0:09:44]} e6 {[%clk 0:07:29]} 9. O-O {[%clk 0:09:32]} Nge7 {[%clk
0:07:29]} 10. Be3 {[%clk 0:08:38]} Qb6 {[%clk 0:06:32]} 11. g4 {[%clk 0:08:23]}
Be4 {[%clk 0:06:18]} 12. Qb3 {[%clk 0:06:18]} Qxb3 {[%clk 0:06:10]} 13. axb3
{[%clk 0:06:18]} cxd4 {[%clk 0:05:41]} 14. cxd4 {[%clk 0:06:19]} Bxf3 {[%clk
0:05:20]} 15. Bxf3 {[%clk 0:06:20]} f6 {[%clk 0:05:20]} 16. exf6 {[%clk
0:06:17]} Bxf6 {[%clk 0:05:21]} 17. Rd1 {[%clk 0:06:17]} Nb4 {[%clk 0:05:02]}
18. Rd2 {[%clk 0:06:02]} Nec6 {[%clk 0:04:55]} 19. Nc3 {[%clk 0:05:59]} Rf8
{[%clk 0:04:52]} 20. Kg2 {[%clk 0:05:41]} Kd7 {[%clk 0:04:52]} 21. Na4 {[%clk
0:05:09]} Rae8 {[%clk 0:04:51]} 22. Nc5+ {[%clk 0:05:06]} Kc7 {[%clk 0:04:40]}
23. g5 {[%clk 0:04:59]} Bg7 {[%clk 0:03:25]} 24. Bg4 {[%clk 0:05:00]} e5 {[%clk
0:03:20]} 25. dxe5 {[%clk 0:04:50]} Bxe5 {[%clk 0:03:06]} 26. Re2 {[%clk
0:03:48]} d4 {[%clk 0:02:51]} 27. Bd2 {[%clk 0:03:49]} d3 {[%clk 0:02:52]} 28.
Re4 {[%clk 0:03:46]} Bxb2 {[%clk 0:02:48]} 29. Rae1 {[%clk 0:03:45]} Rxe4 {[%clk
0:02:44]} 30. Rxe4 {[%clk 0:03:46]} Kd6 {[%clk 0:01:30]} 31. Bxb4 {[%clk
0:03:27]} Nxb4 {[%clk 0:01:26]} 32. Nxb7+ {[%clk 0:03:28]} Kd5 {[%clk 0:01:16]}
33. Rxb4 {[%clk 0:03:28]} d2 {[%clk 0:01:17]} 34. Na5 {[%clk 0:02:40]} Bd4
{[%clk 0:00:15]} 35. Nc4 {[%clk 0:02:41]} Rxf2+ {[%clk 0:00:17]} 36. Kg3 {[%clk
0:02:42]} Rf8 {[%clk 0:00:17]} 37. Nxd2 {[%clk 0:01:57]} Bf2+ {[%clk 0:00:18]}
38. Kg2 {[%clk 0:01:58]} Bc5 {[%clk 0:00:19]} 39. Rb7 {[%clk 0:01:21]} Rf2+
{[%clk 0:00:19]} 40. Kg3 {[%clk 0:01:22]} Rxd2 {[%clk 0:00:20]} 41. Rxh7 {[%clk
0:01:23]} Bd6+ {[%clk 0:00:08]} 42. Kf3 {[%clk 0:01:16]} Rd3+ {[%clk 0:00:09]}
43. Ke2 {[%clk 0:01:18]} Rxb3 {[%clk 0:00:09]} 44. Rg7 {[%clk 0:01:17]} Ke4
{[%clk 0:00:08]} 45. Rxg6 {[%clk 0:01:17]} Rb2+ {[%clk 0:00:09]} 46. Kd1 {[%clk
0:01:15]} Bf4 {[%clk 0:00:10]} 47. Re6+ {[%clk 0:01:13]} Kd3 {[%clk 0:00:10]}
48. Bf5+ {[%clk 0:01:14]} Kc3 {[%clk 0:00:07]} 49. g6 {[%clk 0:01:14]} Bh6
{[%clk 0:00:07]} 50. Rxa6 {[%clk 0:01:12]} Kd4 {[%clk 0:00:08]} 51. Re6 {[%clk
0:01:06]} Rf2 {[%clk 0:00:06]} 52. Bg4 {[%clk 0:01:01]} Kd5 {[%clk 0:00:04]} 53.
Re7 {[%clk 0:00:57]} Rf6 {[%clk 0:00:05]} 54. g7 {[%clk 0:00:54]} Rg6 {[%clk
0:00:06]} 55. Re6 {[%clk 0:00:55]} Rxg4 {[%clk 0:00:07]} 56. hxg4 {[%clk
0:00:55]} Bxg7 {[%clk 0:00:06]} 57. Re8 {[%clk 0:00:53]} 1-0

[Variant "Standard"]
[Site "Europe Echecs"]

[Event "Champions Chess Tour Finals 2024"]
[Date "2024.12.20"]
[White "Nepomniachtchi, Ian"]
[Black "Firouzja, Alireza"]
[WhiteElo "2758"]
[BlackElo "2756"]
[Round "1.2"]
[Result "1-0"]
[TimeControl "600+2"]

1. e4 {[%clk 0:10:03]} c5 {[%clk 0:10:04]} 2. Nf3 {[%clk 0:10:03]} e6 {[%clk
0:10:05]} 3. d4 {[%clk 0:09:54]} cxd4 {[%clk 0:10:06]} 4. Nxd4 {[%clk 0:09:54]}
Nc6 {[%clk 0:10:08]} 5. Nc3 {[%clk 0:09:55]} Qc7 {[%clk 0:10:09]} 6. Be3 {[%clk
0:09:46]} a6 {[%clk 0:10:10]} 7. a3 {[%clk 0:09:35]} b5 {[%clk 0:09:27]} 8. Nxc6
{[%clk 0:09:26]} Qxc6 {[%clk 0:09:24]} 9. Qd4 {[%clk 0:08:49]} Qd6 {[%clk
0:08:02]} 10. O-O-O {[%clk 0:08:21]} Qxd4 {[%clk 0:08:02]} 11. Bxd4 {[%clk
0:08:19]} Bb7 {[%clk 0:07:50]} 12. f3 {[%clk 0:08:20]} Ne7 {[%clk 0:07:32]} 13.
a4 {[%clk 0:06:24]} b4 {[%clk 0:07:01]} 14. Na2 {[%clk 0:06:24]} Nc6 {[%clk
0:05:23]} 15. Bf2 {[%clk 0:05:59]} Be7 {[%clk 0:04:37]} 16. Kb1 {[%clk 0:06:00]}
d6 {[%clk 0:04:15]} 17. Nc1 {[%clk 0:05:51]} O-O {[%clk 0:03:58]} 18. Nb3 {[%clk
0:05:53]} Rfc8 {[%clk 0:03:37]} 19. Bg3 {[%clk 0:05:49]} Bf8 {[%clk 0:02:06]}
20. Be2 {[%clk 0:05:39]} e5 {[%clk 0:01:15]} 21. Rd2 {[%clk 0:05:03]} a5 {[%clk
0:01:03]} 22. Bf2 {[%clk 0:05:01]} Ba6 {[%clk 0:01:00]} 23. Bxa6 {[%clk
0:04:49]} Rxa6 {[%clk 0:01:02]} 24. Rhd1 {[%clk 0:04:46]} f6 {[%clk 0:01:02]}
25. Rd5 {[%clk 0:04:46]} Kf7 {[%clk 0:00:53]} 26. Rb5 {[%clk 0:04:48]} Ke6
{[%clk 0:00:44]} 27. Rdd5 {[%clk 0:04:41]} Rca8 {[%clk 0:00:40]} 28. Rb6 {[%clk
0:04:28]} Be7 {[%clk 0:00:37]} 29. Rb7 {[%clk 0:03:51]} f5 {[%clk 0:00:29]} 30.
Nd2 {[%clk 0:03:38]} fxe4 {[%clk 0:00:29]} 31. fxe4 {[%clk 0:03:39]} Rc8 {[%clk
0:00:17]} 32. Be3 {[%clk 0:03:19]} Nd8 {[%clk 0:00:09]} 33. Rb6 {[%clk 0:03:13]}
Raa8 {[%clk 0:00:05]} 34. b3 {[%clk 0:03:06]} Nf7 {[%clk 0:00:03]} 35. Nc4
{[%clk 0:03:05]} Bd8 {[%clk 0:00:04]} 36. Rb7 {[%clk 0:02:49]} Bc7 {[%clk
0:00:03]} 37. Rbb5 {[%clk 0:02:30]} Nd8 {[%clk 0:00:04]} 38. Bb6 {[%clk
0:02:27]} Ra6 {[%clk 0:00:04]} 39. Bxc7 {[%clk 0:02:20]} Rxc7 {[%clk 0:00:05]}
40. Nxa5 {[%clk 0:02:21]} Nf7 {[%clk 0:00:05]} 41. Rxb4 {[%clk 0:01:49]} Ng5
{[%clk 0:00:05]} 42. Rdb5 {[%clk 0:01:50]} Rc5 {[%clk 0:00:04]} 43. Nb7 {[%clk
0:01:40]} Rc7 {[%clk 0:00:03]} 44. h4 {[%clk 0:01:36]} Nf7 {[%clk 0:00:05]} 45.
Na5 {[%clk 0:01:30]} g5 {[%clk 0:00:05]} 46. h5 {[%clk 0:01:30]} g4 {[%clk
0:00:06]} 47. Nc4 {[%clk 0:01:29]} Ng5 {[%clk 0:00:06]} 48. Rb7 {[%clk 0:01:15]}
Rxb7 {[%clk 0:00:05]} 49. Rxb7 {[%clk 0:01:16]} Nxe4 {[%clk 0:00:06]} 50. Rxh7
{[%clk 0:01:16]} Kf5 {[%clk 0:00:04]} 51. h6 {[%clk 0:01:13]} d5 {[%clk
0:00:04]} 52. Ne3+ {[%clk 0:01:14]} Ke6 {[%clk 0:00:03]} 53. Rg7 {[%clk
0:01:08]} Ra8 {[%clk 0:00:04]} 54. Nxg4 {[%clk 0:01:05]} d4 {[%clk 0:00:04]} 55.
h7 {[%clk 0:00:57]} Rh8 {[%clk 0:00:05]} 56. a5 {[%clk 0:00:55]} Nd6 {[%clk
0:00:05]} 57. a6 {[%clk 0:00:52]} Nf5 {[%clk 0:00:04]} 58. Rb7 {[%clk 0:00:49]}
Nd6 {[%clk 0:00:04]} 59. Rg7 {[%clk 0:00:43]} Nf5 {[%clk 0:00:04]} 60. Rg6+
{[%clk 0:00:45]} Ke7 {[%clk 0:00:03]} 61. a7 {[%clk 0:00:45]} e4 {[%clk
0:00:04]} 62. Rg8 {[%clk 0:00:43]} 1-0

[Variant "Standard"]
[Site "Europe Echecs"]

[Event "Champions Chess Tour Finals 2024"]
[Date "2024.12.20"]
[White "Carlsen, Magnus"]
[Black "Vachier-Lagrave, Maxime"]
[WhiteElo "2838"]
[BlackElo "2763"]
[Round "1.3"]
[Result "1-0"]
[TimeControl "600+2"]

1. d4 {[%clk 0:09:55]} Nf6 {[%clk 0:10:03]} 2. c4 {[%clk 0:09:56]} g6 {[%clk
0:10:04]} 3. g3 {[%clk 0:09:57]} c6 {[%clk 0:10:05]} 4. Bg2 {[%clk 0:09:55]} d5
{[%clk 0:10:05]} 5. Nf3 {[%clk 0:09:56]} Bg7 {[%clk 0:10:06]} 6. O-O {[%clk
0:09:56]} O-O {[%clk 0:10:06]} 7. Re1 {[%clk 0:09:56]} dxc4 {[%clk 0:09:25]} 8.
e4 {[%clk 0:09:56]} b5 {[%clk 0:09:25]} 9. a4 {[%clk 0:09:53]} a5 {[%clk
0:09:23]} 10. axb5 {[%clk 0:09:54]} cxb5 {[%clk 0:09:24]} 11. Nc3 {[%clk
0:09:54]} Bb7 {[%clk 0:08:48]} 12. d5 {[%clk 0:08:35]} b4 {[%clk 0:08:42]} 13.
Na4 {[%clk 0:08:36]} Nbd7 {[%clk 0:08:20]} 14. e5 {[%clk 0:07:52]} Nxd5 {[%clk
0:08:05]} 15. e6 {[%clk 0:07:53]} N7b6 {[%clk 0:06:38]} 16. exf7+ {[%clk
0:07:15]} Rxf7 {[%clk 0:06:38]} 17. Ng5 {[%clk 0:07:14]} Rf5 {[%clk 0:06:10]}
18. g4 {[%clk 0:05:40]} Rf6 {[%clk 0:06:10]} 19. Nc5 {[%clk 0:05:24]} Bc6 {[%clk
0:05:18]} 20. Nce6 {[%clk 0:05:02]} Qd7 {[%clk 0:05:18]} 21. Nxg7 {[%clk
0:04:50]} Kxg7 {[%clk 0:05:19]} 22. Ne4 {[%clk 0:04:31]} Nf4 {[%clk 0:04:07]}
23. Qxd7 {[%clk 0:03:41]} Nxd7 {[%clk 0:04:07]} 24. Nxf6 {[%clk 0:03:41]} Nxg2
{[%clk 0:04:07]} 25. Re6 {[%clk 0:03:41]} Nxf6 {[%clk 0:04:08]} 26. Rxc6 {[%clk
0:03:42]} Ne1 {[%clk 0:04:08]} 27. Rxc4 {[%clk 0:03:37]} Nd3 {[%clk 0:04:05]}
28. g5 {[%clk 0:03:31]} Nd7 {[%clk 0:03:55]} 29. Rc7 {[%clk 0:03:30]} N7e5
{[%clk 0:03:17]} 30. Rxe7+ {[%clk 0:03:31]} Kg8 {[%clk 0:03:12]} 31. Be3 {[%clk
0:03:18]} a4 {[%clk 0:03:12]} 32. Kg2 {[%clk 0:03:08]} a3 {[%clk 0:02:53]} 33.
bxa3 {[%clk 0:02:40]} b3 {[%clk 0:02:54]} 34. Bd4 {[%clk 0:02:26]} Nf4+ {[%clk
0:02:55]} 35. Kf1 {[%clk 0:02:23]} Nf3 {[%clk 0:02:54]} 36. Bf6 {[%clk 0:01:22]}
Nxh2+ {[%clk 0:02:55]} 37. Kg1 {[%clk 0:01:19]} Nf3+ {[%clk 0:02:56]} 38. Kh1
{[%clk 0:01:20]} Nd3 {[%clk 0:02:21]} 39. Re3 {[%clk 0:01:14]} Nfe1 {[%clk
0:01:45]} 40. Raxe1 {[%clk 0:01:15]} Nxe1 {[%clk 0:01:46]} 41. Rxe1 {[%clk
0:01:16]} Rxa3 {[%clk 0:01:47]} 42. Re8+ {[%clk 0:01:16]} Kf7 {[%clk 0:01:48]}
43. Re7+ {[%clk 0:01:16]} Kf8 {[%clk 0:01:45]} 44. Rxh7 {[%clk 0:01:14]} Ra2
{[%clk 0:01:45]} 45. Kg2 {[%clk 0:01:13]} 1-0

[Variant "Standard"]
[Site "Europe Echecs"]